fUST/lending_fUST_20250529
["ID","MTS","AMOUNT","RATE_DAILY","PERIOD"]
[362850178,1748490643604,-231.11871391,0.00022467,2]
[362850180,1748490643613,-1837.3,0.0002248,2]
[362850183,1748490643622,-420.0,0.00023906,2]
[362850186,1748490643631,-820.61,0.00024381,2]
[362850189,1748490643640,-748.95768144,0.00024513,15]
[362850278,1748490646412,-433.1,0.00019997,2]
[362850280,1748490646422,-430.0,0.00019998,2]
[362850282,1748490646430,-433.1,0.00020271,2]
[362850284,1748490646443,-430.0,0.00020272,2]
[362850286,1748490646452,-433.1,0.00020545,2]
[362850288,1748490646462,-433.1,0.00020819,2]
[362850290,1748490646476,-433.1,0.00021093,2]
[362850292,1748490646486,-433.1,0.00021367,2]
[362850294,1748490646495,-433.1,0.00021641,2]
[362850296,1748490646506,-433.1,0.00021915,2]
[362850298,1748490646517,-433.1,0.00022189,2]
[362850300,1748490646527,-433.1,0.00022463,2]
[362850302,1748490646536,-231.11871391,0.00023232,2]
[362850304,1748490646546,-3674.6,0.00023551,2]
[362850306,1748490646555,-555.04231856,0.00024513,15]
[362850308,1748490646564,-5511.9,0.00024621,2]
[362850310,1748490646574,-820.61,0.00024655,2]
[362850312,1748490646583,-387.31500741,0.000249,2]
[362850314,1748490646594,-2300.685923,0.000249,2]
[362850317,1748490646610,-430.0,0.00020546,2]
[362850319,1748490646619,-22268.30197581,0.000249,2]
[362850697,1748491832471,-203.91913958,0.00018531,2]
[362850699,1748491832481,-214.825144,0.00019178,2]
[362850701,1748491832492,-292.45054053,0.0001929,2]
[362850703,1748491832502,-5000.0,0.0001939,2]
[362850719,1748491832646,-3000.0,0.000194,2]
[362850721,1748491832655,-300.0,0.00019409,2]
[362850723,1748491832665,-5819.866601,0.0001941,2]
[362850725,1748491832675,-5000.0,0.00019436,2]
[362850727,1748491832684,-411.77663233,0.00019899,2]
[362850729,1748491832693,-430.0,0.00019899,2]
[362850731,1748491832705,-430.0,0.00019899,2]
[362850734,1748491832715,-286.84109618,0.000199,2]
[362850736,1748491832725,-443.8966261,0.00019972,2]
[362850737,1748491832734,-430.0,0.00019972,2]
[362850740,1748491832747,-430.0,0.00019972,2]
[362850742,1748491832757,-430.0,0.00019972,2]
[362850743,1748491832766,-430.0,0.00019972,2]
[362850745,1748491832775,-430.0,0.00019972,2]
[362850747,1748491832785,-430.0,0.00019972,2]
[362850750,1748491832795,-1454.21,0.00019972,2]
[362850752,1748491832805,-448.06791988,0.00019972,2]
[362850754,1748491832814,-430.0,0.00019972,2]
[362850756,1748491832823,-407.38823367,0.00019972,2]
[362850758,1748491832833,-430.0,0.00019972,2]
[362850760,1748491832842,-434.65979101,0.00019972,2]
[362850762,1748491832851,-430.0,0.00019972,2]
[362850764,1748491832863,-430.0,0.00019972,2]
[362850765,1748491832873,-430.0,0.00019972,2]
[362850768,1748491832883,-1869.03,0.00019972,2]
[362850770,1748491832892,-430.0,0.00019972,2]
[362850771,1748491832902,-500.0,0.00019973,2]
[362850773,1748491832912,-181.48,0.00019987,3]
[362850775,1748491832921,-544.48,0.00019987,3]
[362850777,1748491832930,-387.37282751,0.00019991,2]
[362850779,1748491832942,-413.40400061,0.00019991,2]
[362850782,1748491832951,-500.0,0.00019991,2]
[362850783,1748491832961,-500.0,0.00019991,2]
[362850785,1748491832970,-500.0,0.00019991,2]
[362850787,1748491832979,-382.38577595,0.00019991,2]
[362850790,1748491832990,-748.5,0.00019993,2]
[362850791,1748491833000,-2337.84,0.00019993,2]
[362850794,1748491833010,-430.0,0.00019993,2]
[362850796,1748491833020,-430.0,0.00019993,2]
[362850798,1748491833030,-45.96265377,0.00019993,2]
[362850801,1748491833050,-846.17734623,0.00019993,2]
[362850803,1748491833060,-430.0,0.00019993,2]
[362850805,1748491833069,-874.5,0.00019993,2]
[362850807,1748491833078,-430.0,0.00019993,2]
[362850809,1748491833087,-430.0,0.00019993,2]
[362850811,1748491833097,-430.0,0.00019993,2]
[362850813,1748491833106,-430.0,0.00019993,2]
[362850815,1748491833116,-430.0,0.00019993,2]
[362850817,1748491833126,-430.0,0.00019993,2]
[362850819,1748491833135,-430.0,0.00019993,2]
[362850821,1748491833145,-430.0,0.00019993,2]
[362850823,1748491833155,-430.0,0.00019993,2]
[362850825,1748491833166,-430.0,0.00019993,2]
[362850827,1748491833175,-453.94659006,0.00019993,2]
[362850829,1748491833185,-430.0,0.00019993,2]
[362850831,1748491833195,-430.0,0.00019993,2]
[362850833,1748491833205,-430.0,0.00019993,2]
[362850835,1748491833217,-430.0,0.00019993,2]
[362850837,1748491833227,-430.0,0.00019993,2]
[362850839,1748491833236,-430.0,0.00019993,2]
[362850841,1748491833247,-571.25,0.00019993,2]
[362850843,1748491833257,-430.0,0.00019993,2]
[362850845,1748491833265,-430.0,0.00019993,2]
[362850847,1748491833275,-430.0,0.00019993,2]
[362850849,1748491833285,-500.0,0.00019993,2]
[362850851,1748491833295,-500.0,0.00019993,2]
[362850853,1748491833305,-438.62726464,0.00019993,2]
[362850855,1748491833314,-578.42213376,0.00019993,2]
[362850857,1748491833324,-430.0,0.00019993,2]
[362850859,1748491833333,-430.0,0.00019993,2]
[362850861,1748491833342,-430.0,0.00019993,2]
[362850863,1748491833352,-430.0,0.00019993,2]
[362850865,1748491833361,-430.0,0.00019993,2]
[362850867,1748491833370,-430.0,0.00019993,2]
[362850869,1748491833380,-430.0,0.00019993,2]
[362850872,1748491833390,-212.27341925,0.00019993,2]
[362850874,1748491833399,-481.13668383,0.00019993,2]
[362850876,1748491833409,-586.42459332,0.00019993,2]
[362850877,1748491833418,-430.0,0.00019994,2]
[362850880,1748491833427,-417.68998217,0.00019994,2]
[362850881,1748491833437,-430.0,0.00019994,2]
[362850884,1748491833446,-430.0,0.00019994,2]
[362850886,1748491833455,-430.0,0.00019994,2]
[362850888,1748491833465,-430.0,0.00019994,2]
[362850890,1748491833475,-413.99377412,0.00019994,2]
[362850892,1748491833484,-415.23987964,0.00019994,2]
[362850894,1748491833495,-430.0,0.00019994,2]
[362850896,1748491833504,-412.97171181,0.00019994,2]
[362850898,1748491833513,-417.91262611,0.00019994,2]
[362850900,1748491833523,-430.0,0.00019994,2]
[362850902,1748491833532,-418.67094118,0.00019994,2]
[362850904,1748491833542,-430.0,0.00019994,2]
[362850906,1748491833551,-430.0,0.00019994,2]
[362850908,1748491833561,-438.04649804,0.00019994,2]
[362850910,1748491833571,-1094.63341445,0.00019994,2]
[362850912,1748491833580,-342.66053846,0.00019994,2]
[362850914,1748491833589,-430.0,0.00019994,2]
[362850916,1748491833599,-458.17284797,0.00019994,2]
[362850918,1748491833608,-414.70380412,0.00019994,2]
[362850920,1748491833617,-430.0,0.00019994,2]
[362850922,1748491833628,-421.72134209,0.00019994,2]
[362850924,1748491833637,-430.0,0.00019994,2]
[362850926,1748491833647,-436.28618732,0.00019994,2]
[362850928,1748491833656,-430.0,0.00019994,2]
[362850930,1748491833665,-438.12037596,0.00019994,2]
[362850932,1748491833675,-458.92485753,0.00019994,2]
[362850934,1748491833684,-428.1722098,0.00019994,2]
[362850936,1748491833694,-461.71874126,0.00019994,2]
[362850938,1748491833704,-430.0,0.00019994,2]
[362850940,1748491833713,-295.78081405,0.00019994,2]
[362850942,1748491833723,-432.0963001,0.00019994,2]
[362850944,1748491833732,-430.79440265,0.00019994,2]
[362850946,1748491833743,-407.18123016,0.00019994,2]
[362850948,1748491833752,-430.0,0.00019994,2]
[362850950,1748491833761,-431.45985341,0.00019994,2]
[362850952,1748491833771,-430.0,0.00019994,2]
[362850954,1748491833781,-412.02850224,0.00019994,2]
[362850956,1748491833791,-430.0,0.00019994,2]
[362850958,1748491833801,-430.0,0.00019994,2]
[362850960,1748491833811,-419.08733911,0.00019994,2]
[362850962,1748491833821,-409.00110486,0.00019994,2]
[362850964,1748491833831,-430.0,0.00019994,2]
[362850966,1748491833842,-452.96730173,0.00019994,2]
[362850968,1748491833852,-430.0,0.00019994,2]
[362850970,1748491833863,-441.9,0.00019994,2]
[362850972,1748491833874,-402.7727925,0.00019994,2]
[362850974,1748491833884,-430.0,0.00019994,2]
[362850976,1748491833894,-408.04276837,0.00019994,2]
[362850978,1748491833905,-433.13018422,0.00019994,2]
[362850980,1748491833914,-422.797985,0.00019994,2]
[362850982,1748491833923,-430.0,0.00019994,2]
[362850984,1748491833933,-430.0,0.00019994,2]
[362850986,1748491833942,-430.0,0.00019994,2]
[362850988,1748491833952,-407.91995868,0.00019994,2]
[362850990,1748491833962,-430.0,0.00019994,2]
[362850992,1748491833972,-423.41856525,0.00019994,2]
[362850994,1748491833981,-430.0,0.00019994,2]
[362850995,1748491833991,-430.0,0.00019994,2]
[362850998,1748491834001,-430.0,0.00019994,2]
[362851000,1748491834010,-430.0,0.00019994,2]
[362851001,1748491834020,-430.0,0.00019994,2]
[362851004,1748491834030,-442.15745603,0.00019994,2]
[362851006,1748491834040,-430.0,0.00019994,2]
[362851007,1748491834049,-430.0,0.00019994,2]
[362851010,1748491834059,-430.0,0.00019994,2]
[362851013,1748491834078,-430.0,0.00019994,2]
[362851015,1748491834089,-430.0,0.00019994,2]
[362851017,1748491834099,-430.0,0.00019994,2]
[362851019,1748491834109,-428.73785951,0.00019994,2]
[362851021,1748491834119,-430.0,0.00019994,2]
[362851023,1748491834129,-430.0,0.00019994,2]
[362851025,1748491834138,-430.0,0.00019994,2]
[362851027,1748491834148,-448.78779347,0.00019994,2]
[362851029,1748491834158,-430.0,0.00019994,2]
[362851031,1748491834168,-577.4921853,0.00019994,2]
[362851033,1748491834177,-433.77,0.00019994,2]
[362851035,1748491834187,-414.64797292,0.00019994,2]
[362851037,1748491834197,-430.0,0.00019994,2]
[362851039,1748491834207,-430.0,0.00019994,2]
[362851041,1748491834217,-433.06762133,0.00019994,2]
[362851043,1748491834227,-430.0,0.00019994,2]
[362851045,1748491834237,-450.50239604,0.00019994,2]
[362851047,1748491834250,-430.0,0.00019994,2]
[362851049,1748491834259,-430.0,0.00019994,2]
[362851051,1748491834269,-430.0,0.00019994,2]
[362851053,1748491834280,-382.52012222,0.00019994,2]
[362851056,1748491834290,-430.0,0.00019994,2]
[362851058,1748491834300,-430.0,0.00019994,2]
[362851059,1748491834310,-430.0,0.00019994,2]
[362851060,1748491834320,-290.63884412,0.00019994,2]
[362851061,1748491834329,-430.0,0.00019994,2]
[362851062,1748491834339,-430.0,0.00019994,2]
[362851063,1748491834349,-430.0,0.00019994,2]
[362851064,1748491834358,-430.0,0.00019994,2]
[362851065,1748491834368,-430.0,0.00019994,2]
[362851066,1748491834378,-430.0,0.00019994,2]
[362851067,1748491834388,-430.0,0.00019994,2]
[362851068,1748491834398,-430.0,0.00019994,2]
[362851069,1748491834407,-430.0,0.00019994,2]
[362851070,1748491834417,-447.51356726,0.00019994,2]
[362851071,1748491834426,-430.0,0.00019994,2]
[362851072,1748491834436,-430.0,0.00019994,2]
[362851073,1748491834445,-430.0,0.00019994,2]
[362851074,1748491834455,-430.0,0.00019994,2]
[362851075,1748491834464,-347.12698007,0.00019994,2]
[362851076,1748491834473,-430.0,0.00019994,2]
[362851077,1748491834483,-410.50668379,0.00019994,2]
[362851078,1748491834495,-343.93813479,0.00019994,2]
[362851079,1748491834505,-453.91646313,0.00019994,2]
[362851080,1748491834515,-430.0,0.00019994,2]
[362851081,1748491834525,-403.74443085,0.00019994,2]
[362851082,1748491834535,-465.86277148,0.00019994,2]
[362851083,1748491834545,-430.0,0.00019994,2]
[362851084,1748491834554,-200.97508311,0.00019994,2]
[362851085,1748491834564,-430.0,0.00019994,2]
[362851086,1748491834573,-426.60772689,0.00019994,2]
[362851087,1748491834583,-430.0,0.00019994,2]
[362851088,1748491834593,-430.0,0.00019994,2]
[362851089,1748491834602,-430.0,0.00019994,2]
[362851090,1748491834612,-430.0,0.00019994,2]
[362851091,1748491834621,-430.0,0.00019994,2]
[362851092,1748491834631,-430.0,0.00019994,2]
[362851093,1748491834640,-434.86754796,0.00019994,2]
[362851094,1748491834650,-430.0,0.00019994,2]
[362851095,1748491834659,-430.0,0.00019994,2]
[362851096,1748491834669,-430.0,0.00019994,2]
[362851097,1748491834679,-433.4166084,0.00019994,2]
[362851098,1748491834688,-444.37770286,0.00019994,2]
[362851099,1748491834698,-360.95113158,0.00019994,2]
[362851100,1748491834708,-432.42817663,0.00019994,2]
[362851101,1748491834719,-430.0,0.00019994,2]
[362851102,1748491834729,-430.0,0.00019994,2]
[362851103,1748491834739,-430.0,0.00019994,2]
[362851104,1748491834749,-430.0,0.00019994,2]
[362851105,1748491834759,-430.0,0.00019994,2]
[362851106,1748491834768,-430.0,0.00019994,2]
[362851107,1748491834778,-430.0,0.00019994,2]
[362851108,1748491834787,-408.14195522,0.00019994,2]
[362851109,1748491834796,-430.0,0.00019994,2]
[362851110,1748491834805,-430.0,0.00019994,2]
[362851111,1748491834815,-430.0,0.00019994,2]
[362851112,1748491834825,-431.67683541,0.00019994,2]
[362851113,1748491834834,-324.51326619,0.00019994,2]
[362851114,1748491834844,-166.6410457,0.00019994,2]
[362851115,1748491834853,-430.0,0.00019994,2]
[362851116,1748491834865,-430.0,0.00019994,2]
[362851117,1748491834874,-430.0,0.00019994,2]
[362851118,1748491834884,-396.8583303,0.00019994,2]
[362851119,1748491834893,-503.47987014,0.00019994,2]
[362851120,1748491834903,-500.0,0.00019994,2]
[362851121,1748491834913,-409.49654014,0.00019994,2]
[362851122,1748491834922,-410.66209425,0.00019994,2]
[362851123,1748491834932,-430.0,0.00019994,2]
[362851124,1748491834942,-430.0,0.00019994,2]
[362851125,1748491834951,-430.0,0.00019994,2]
[362851126,1748491834961,-430.0,0.00019994,2]
[362851127,1748491834970,-430.0,0.00019994,2]
[362851128,1748491834979,-453.07215491,0.00019994,2]
[362851129,1748491834991,-334.01460011,0.00019994,2]
[362851130,1748491835000,-449.17161289,0.00019994,2]
[362851131,1748491835009,-207.2516467,0.00019994,2]
[362851132,1748491835133,-430.0,0.00019994,2]
[362851133,1748491835143,-430.0,0.00019994,2]
[362851134,1748491835153,-430.0,0.00019994,2]
[362851135,1748491835162,-430.0,0.00019994,2]
[362851136,1748491835172,-430.0,0.00019994,2]
[362851137,1748491835181,-430.0,0.00019994,2]
[362851138,1748491835191,-430.0,0.00019994,2]
[362851139,1748491835200,-430.0,0.00019994,2]
[362851140,1748491835210,-430.0,0.00019994,2]
[362851141,1748491835219,-430.0,0.00019994,2]
[362851142,1748491835228,-430.0,0.00019994,2]
[362851143,1748491835237,-430.0,0.00019994,2]
[362851144,1748491835248,-412.02649634,0.00019994,2]
[362851145,1748491835257,-430.0,0.00019994,2]
[362851146,1748491835267,-453.69908247,0.00019994,2]
[362851147,1748491835277,-430.0,0.00019994,2]
[362851148,1748491835287,-411.55524812,0.00019994,2]
[362851149,1748491835296,-430.0,0.00019994,2]
[362851150,1748491835306,-430.0,0.00019994,2]
[362851151,1748491835316,-299.99707747,0.00019994,2]
[362851152,1748491835325,-499.34,0.00019994,2]
[362851153,1748491835335,-430.0,0.00019994,2]
[362851154,1748491835344,-454.73281423,0.00019994,2]
[362851155,1748491835354,-444.40049639,0.00019994,2]
[362851156,1748491835363,-394.68939842,0.00019994,2]
[362851157,1748491835373,-430.0,0.00019994,2]
[362851158,1748491835382,-452.52206794,0.00019994,2]
[362851159,1748491835391,-430.0,0.00019994,2]
[362851160,1748491835400,-430.0,0.00019994,2]
[362851161,1748491835409,-430.84700564,0.00019994,2]
[362851162,1748491835419,-512.19078929,0.00019994,2]
[362851163,1748491835429,-430.0,0.00019994,2]
[362851164,1748491835438,-452.14384119,0.00019994,2]
[362851165,1748491835448,-407.82841032,0.00019994,2]
[362851166,1748491835458,-430.0,0.00019994,2]
[362851167,1748491835467,-430.0,0.00019994,2]
[362851168,1748491835477,-430.0,0.00019994,2]
[362851169,1748491835486,-430.0,0.00019994,2]
[362851170,1748491835498,-430.0,0.00019994,2]
[362851171,1748491835507,-453.78592043,0.00019994,2]
[362851172,1748491835516,-416.83314554,0.00019994,2]
[362851173,1748491835525,-374.90971732,0.00019994,2]
[362851174,1748491835535,-404.28382579,0.00019994,2]
[362851175,1748491835545,-430.0,0.00019994,2]
[362851176,1748491835554,-550.8,0.00019994,2]
[362851177,1748491835563,-330.70590416,0.00019994,2]
[362851178,1748491835572,-408.59242071,0.00019994,2]
[362851179,1748491835582,-408.90497436,0.00019994,2]
[362851180,1748491835592,-407.66745858,0.00019994,2]
[362851181,1748491835602,-416.08504167,0.00019994,2]
[362851182,1748491835611,-433.541563,0.00019994,2]
[362851183,1748491835621,-411.8199038,0.00019994,2]
[362851184,1748491835631,-430.0,0.00019994,2]
[362851185,1748491835641,-430.0,0.00019994,2]
[362851186,1748491835651,-430.0,0.00019994,2]
[362851187,1748491835660,-415.69999327,0.00019994,2]
[362851188,1748491835670,-430.0,0.00019994,2]
[362851189,1748491835680,-430.0,0.00019994,2]
[362851190,1748491835689,-401.27672285,0.00019994,2]
[362851191,1748491835698,-430.0,0.00019994,2]
[362851192,1748491835708,-409.54682402,0.00019994,2]
[362851193,1748491835717,-403.14301129,0.00019994,2]
[362851194,1748491835726,-430.0,0.00019994,2]
[362851195,1748491835736,-430.0,0.00019994,2]
[362851196,1748491835748,-406.3411999,0.00019994,2]
[362851197,1748491835757,-432.6859199,0.00019994,2]
[362851198,1748491835767,-430.0,0.00019994,2]
[362851199,1748491835776,-404.26502334,0.00019994,2]
[362851200,1748491835786,-430.0,0.00019994,2]
[362851201,1748491835796,-430.0,0.00019994,2]
[362851202,1748491835805,-430.0,0.00019994,2]
[362851203,1748491835815,-411.56354347,0.00019994,2]
[362851204,1748491835824,-421.76987966,0.00019994,2]
[362851205,1748491835833,-364.1765838,0.00019994,2]
[362851206,1748491835843,-400.0,0.00019994,2]
[362851207,1748491835852,-410.46464604,0.00019994,2]
[362851208,1748491835863,-430.0,0.00019994,2]
[362851209,1748491835874,-433.32450129,0.00019994,2]
[362851210,1748491835884,-430.0,0.00019994,2]
[362851211,1748491835893,-430.0,0.00019994,2]
[362851212,1748491835903,-430.0,0.00019994,2]
[362851213,1748491835912,-271.60993285,0.00019994,2]
[362851214,1748491835922,-430.0,0.00019994,2]
[362851215,1748491835932,-405.27609345,0.00019994,2]
[362851216,1748491835941,-333.80179606,0.00019994,2]
[362851217,1748491835951,-432.2161106,0.00019994,2]
[362851218,1748491835960,-512.52,0.00019994,2]
[362851219,1748491835970,-430.40683056,0.00019994,2]
[362851220,1748491835979,-430.0,0.00019994,2]
[362851221,1748491835988,-430.0,0.00019994,2]
[362851222,1748491835999,-416.68135803,0.00019994,2]
[362851223,1748491836008,-500.0,0.00019994,2]
[362851224,1748491836018,-430.0,0.00019994,2]
[362851225,1748491836028,-762.65,0.00019994,2]
[362851226,1748491836038,-422.98183294,0.00019994,2]
[362851227,1748491836047,-430.0,0.00019994,2]
[362851228,1748491836056,-434.27783644,0.00019994,2]
[362851229,1748491836065,-430.0,0.00019994,2]
[362851230,1748491836074,-430.0,0.00019994,2]
[362851231,1748491836083,-430.0,0.00019994,2]
[362851232,1748491836093,-407.99029194,0.00019994,2]
[362851233,1748491836102,-407.98503021,0.00019994,2]
[362851234,1748491836111,-407.50072423,0.00019994,2]
[362851235,1748491836120,-430.0,0.00019994,2]
[362851236,1748491836129,-431.14281642,0.00019994,2]
[362851237,1748491836138,-410.29119584,0.00019994,2]
[362851238,1748491836147,-403.13270339,0.00019994,2]
[362851239,1748491836156,-430.0,0.00019994,2]
[362851240,1748491836164,-433.70871508,0.00019994,2]
[362851241,1748491836174,-430.0,0.00019994,2]
[362851242,1748491836183,-409.66997374,0.00019994,2]
[362851243,1748491836192,-433.78382378,0.00019994,2]
[362851244,1748491836201,-436.69389777,0.00019994,2]
[362851245,1748491836210,-407.14187997,0.00019994,2]
[362851246,1748491836220,-430.0,0.00019994,2]
[362851247,1748491836230,-334.35503612,0.00019994,2]
[362851248,1748491836242,-405.40065638,0.00019994,2]
[362851249,1748491836251,-430.0,0.00019994,2]
[362851250,1748491836260,-309.27402288,0.00019994,2]
[362851251,1748491836269,-172.29672818,0.00019994,2]
[362851252,1748491836279,-533.43,0.00019994,2]
[362851253,1748491836288,-405.08988392,0.00019994,2]
[362851254,1748491836298,-430.0,0.00019994,2]
[362851255,1748491836308,-412.15048422,0.00019994,2]
[362851256,1748491836318,-433.98189124,0.00019994,2]
[362851257,1748491836327,-420.61531018,0.00019994,2]
[362851258,1748491836338,-500.0,0.00019994,2]
[362851259,1748491836349,-430.0,0.00019994,2]
[362851260,1748491836358,-430.0,0.00019994,2]
[362851261,1748491836366,-430.0,0.00019994,2]
[362851262,1748491836375,-430.0,0.00019994,2]
[362851263,1748491836385,-430.0,0.00019994,2]
[362851264,1748491836394,-435.79293538,0.00019994,2]
[362851265,1748491836403,-430.0,0.00019994,2]
[362851266,1748491836412,-430.0,0.00019994,2]
[362851267,1748491836421,-430.0,0.00019994,2]
[362851268,1748491836430,-430.0,0.00019994,2]
[362851269,1748491836439,-430.0,0.00019995,2]
[362851270,1748491836448,-411.27567292,0.00019995,2]
[362851271,1748491836458,-430.0,0.00019995,2]
[362851272,1748491836467,-445.14742463,0.00019995,2]
[362851273,1748491836476,-430.0,0.00019995,2]
[362851274,1748491836485,-430.0,0.00019995,2]
[362851275,1748491836496,-563.8062601,0.00019995,2]
[362851276,1748491836505,-430.0,0.00019995,2]
[362851277,1748491836514,-430.0,0.00019995,2]
[362851278,1748491836523,-415.18448536,0.00019995,2]
[362851279,1748491836531,-416.30234873,0.00019995,2]
[362851280,1748491836538,-430.0,0.00019995,2]
[362851281,1748491836546,-430.0,0.00019995,2]
[362851282,1748491836554,-408.77794614,0.00019995,2]
[362851283,1748491836562,-416.69313481,0.00019995,2]
[362851284,1748491836569,-365.3051929,0.00019995,2]
[362851285,1748491836577,-561.34544935,0.00019995,2]
[362851286,1748491836585,-435.03462808,0.00019995,2]
[362851287,1748491836593,-430.0,0.00019995,2]
[362851288,1748491836601,-574.35974314,0.00019995,2]
[362851289,1748491836609,-430.0,0.00019995,2]
[362851290,1748491836618,-430.0,0.00019995,2]
[362851291,1748491836627,-430.0,0.00019995,2]
[362851292,1748491836635,-430.0,0.00019995,2]
[362851293,1748491836645,-430.0,0.00019995,2]
[362851294,1748491836654,-430.0,0.00019995,2]
[362851295,1748491836662,-430.0,0.00019995,2]
[362851296,1748491836672,-500.0,0.00019995,2]
[362851297,1748491836680,-500.0,0.00019995,2]
[362851298,1748491836690,-261.35337157,0.00019995,2]
[362851299,1748491836699,-430.0,0.00019996,2]
[362851300,1748491836708,-435.32756588,0.00019996,2]
[362851301,1748491836717,-430.0,0.00019996,2]
[362851302,1748491836727,-430.0,0.00019996,2]
[362851303,1748491836736,-346.01154996,0.00019996,2]
[362851304,1748491836746,-430.0,0.00019996,2]
[362851305,1748491836755,-411.91153829,0.00019996,2]
[362851306,1748491836764,-430.0,0.00019996,2]
[362851307,1748491836773,-500.0,0.00019996,2]
[362851308,1748491836782,-430.0,0.00019996,2]
[362851309,1748491836792,-430.0,0.00019996,2]
[362851310,1748491836801,-430.0,0.00019996,2]
[362851311,1748491836810,-430.0,0.00019996,2]
[362851312,1748491836820,-430.0,0.00019996,2]
[362851313,1748491836829,-430.0,0.00019996,2]
[362851314,1748491836838,-430.0,0.00019996,2]
[362851315,1748491836847,-430.0,0.00019996,2]
[362851316,1748491836856,-430.0,0.00019996,2]
[362851317,1748491836868,-430.0,0.00019996,2]
[362851318,1748491836877,-430.0,0.00019996,2]
[362851319,1748491836887,-430.0,0.00019996,2]
[362851320,1748491836896,-791.36,0.00019996,2]
[362851321,1748491836905,-430.0,0.00019996,2]
[362851322,1748491836914,-430.0,0.00019996,2]
[362851323,1748491836923,-430.0,0.00019996,2]
[362851324,1748491836932,-430.0,0.00019996,2]
[362851325,1748491836941,-893.39,0.00019996,2]
[362851326,1748491836951,-430.0,0.00019996,2]
[362851327,1748491836960,-430.0,0.00019996,2]
[362851328,1748491836969,-430.0,0.00019996,2]
[362851329,1748491836978,-430.0,0.00019996,2]
[362851330,1748491836987,-430.0,0.00019996,2]
[362851331,1748491836999,-430.0,0.00019996,2]
[362851332,1748491837008,-430.0,0.00019996,2]
[362851333,1748491837017,-430.0,0.00019996,2]
[362851334,1748491837026,-430.0,0.00019996,2]
[362851335,1748491837036,-430.0,0.00019996,2]
[362851336,1748491837045,-430.0,0.00019996,2]
[362851337,1748491837055,-1466.94,0.00019996,2]
[362851338,1748491837064,-500.0,0.00019996,2]
[362851339,1748491837073,-500.0,0.00019996,2]
[362851340,1748491837082,-500.0,0.00019996,2]
[362851341,1748491837090,-500.0,0.00019996,2]
[362851342,1748491837098,-430.0,0.00019996,2]
[362851343,1748491837106,-430.0,0.00019996,2]
[362851344,1748491837115,-255.33485349,0.00019997,2]
[362851345,1748491837125,-407.96060411,0.00019997,2]
[362851346,1748491837134,-407.36378751,0.00019997,2]
[362851347,1748491837145,-435.18095626,0.00019997,2]
[362851348,1748491837155,-431.57079556,0.00019997,2]
[362851349,1748491837164,-438.29427501,0.00019997,2]
[362851350,1748491837174,-430.0,0.00019997,2]
[362851351,1748491837184,-430.0,0.00019997,2]
[362851352,1748491837193,-404.42995992,0.00019997,2]
[362851353,1748491837203,-430.0,0.00019997,2]
[362851354,1748491837213,-430.0,0.00019997,2]
[362851355,1748491837223,-412.02557043,0.00019997,2]
[362851356,1748491837321,-428.5999304,0.00019997,2]
[362851357,1748491837331,-430.0,0.00019997,2]
[362851358,1748491837340,-430.19912314,0.00019997,2]
[362851359,1748491837349,-409.99517058,0.00019997,2]
[362851360,1748491837360,-430.0,0.00019997,2]